fUSD/lending_fUSD_20260630
["ID","MTS","AMOUNT","RATE_DAILY","PERIOD"]
[426704594,1782752343000,-325.29781957,0.00037517,120]
[426704595,1782752343000,-290.08490362,0.00037517,120]
[426704599,1782752343000,-178.76624223,0.00037517,108]
[426704597,1782752343000,-181.35308512,0.00037517,120]
[426704596,1782752343000,-179.09652588,0.00037517,120]
[426704593,1782752343000,-178.89193468,0.00037517,120]
[426704592,1782752343000,-585.0706,0.00037517,120]
[426704591,1782752343000,-181.09887251,0.00037517,120]
[426704587,1782752343000,-281.37571929,0.00037517,120]
[426704588,1782752343000,-266.29318495,0.00037517,120]
[426704589,1782752343000,-160.31265207,0.00037517,120]
[426704586,1782752343000,-232.0231835,0.00037517,120]
[426704584,1782752343000,-359.65774697,0.00037517,120]
[426704585,1782752343000,-205.68422509,0.00037517,120]
[426704583,1782752343000,-225.10287161,0.00037517,120]
[426704598,1782752343000,-161.67862542,0.00037517,120]
[426704590,1782752343000,-178.85992419,0.00037517,120]
[426704582,1782752343000,-152.25676118,0.00037517,120]
[426704600,1782752343000,-500.0,0.00037517,120]
[426704602,1782752343000,-399.36933179,0.00037517,120]
[426704601,1782752343000,-500.0,0.00037517,120]
[426704618,1782752343000,-152.0253727,0.00037517,120]
[426704619,1782752343000,-178.36293094,0.00037517,120]
[426704616,1782752343000,-150.29495707,0.00037517,120]
[426704617,1782752343000,-176.41926149,0.00037517,120]
[426704615,1782752343000,-175.01720542,0.00037517,120]
[426704613,1782752343000,-165.47536882,0.00037517,120]
[426704611,1782752343000,-155.85686005,0.00037517,120]
[426704614,1782752343000,-160.68710583,0.00037517,120]
[426704610,1782752343000,-337.44473335,0.00037517,120]
[426704612,1782752343000,-175.38059731,0.00037517,120]
[426704606,1782752343000,-165.51248192,0.00037517,120]
[426704605,1782752343000,-239.5302759,0.00037517,120]
[426704604,1782752343000,-177.14272853,0.00037517,120]
[426704603,1782752343000,-211.97196896,0.00037517,120]
[426704607,1782752343000,-231.28903427,0.00037517,120]
[426704609,1782752343000,-172.2549299,0.00037517,120]
[426704608,1782752343000,-159.06477489,0.00037517,120]
[426704631,1782752344000,-293.80910393,0.00037517,30]
[426704634,1782752344000,-1046.44535562,0.00037517,30]
[426704637,1782752344000,-162.54457507,0.00037517,30]
[426704635,1782752344000,-155.75516075,0.00037517,120]
[426704633,1782752344000,-383.4348355,0.00037517,30]
[426704632,1782752344000,-41943.08351453,0.00037517,30]
[426704630,1782752344000,-300.0,0.00037517,120]
[426704628,1782752344000,-1129.0,0.00037517,30]
[426704621,1782752344000,-157.70172378,0.00037517,120]
[426704626,1782752344000,-170.04,0.00037517,60]
[426704627,1782752344000,-150.30320194,0.00037517,120]
[426704624,1782752344000,-6074.70586405,0.00037517,120]
[426704625,1782752344000,-189.34480529,0.00037517,120]
[426704622,1782752344000,-156.96111301,0.00037517,120]
[426704623,1782752344000,-159.26091747,0.00037517,120]
[426704620,1782752344000,-185.14071137,0.00037517,120]
[426704636,1782752344000,-4339.59785693,0.00037517,61]
[426704629,1782752344000,-300.3103199,0.00037517,120]
[426704639,1782752344000,-664.79564878,0.00037517,120]
[426704640,1782752344000,-798.52630553,0.00037517,30]
[426704641,1782752344000,-188.0,0.00037517,120]
[426704659,1782752344000,-164.15298266,0.00037517,60]
[426704657,1782752344000,-4620.37400778,0.00037517,30]
[426704638,1782752344000,-786.37362714,0.00037517,30]
[426704658,1782752344000,-695.03157213,0.00037517,30]
[426704656,1782752344000,-421.57687334,0.00037517,30]
[426704651,1782752344000,-354.0,0.00037517,120]
[426704653,1782752344000,-167.92109641,0.00037517,30]
[426704654,1782752344000,-341.1159619,0.00037517,120]
[426704652,1782752344000,-179.54779138,0.00037517,120]
[426704655,1782752344000,-3978.51565329,0.00037517,30]
[426704649,1782752344000,-456.32405284,0.00037517,120]
[426704648,1782752344000,-212.4340275,0.00037517,120]
[426704650,1782752344000,-152.7926585,0.00037517,120]
[426704643,1782752344000,-500.0,0.00037517,120]
[426704644,1782752344000,-600.17377923,0.00037517,120]
[426704645,1782752344000,-341.84353427,0.00037517,120]
[426704646,1782752344000,-900.21821462,0.00037517,120]
[426704642,1782752344000,-500.0,0.00037517,120]
[426704647,1782752344000,-161.31825244,0.00037517,30]
[426704672,1782752345000,-3249.8130749,0.00037517,90]
[426704670,1782752345000,-163.05551576,0.00037517,120]
[426704669,1782752345000,-171.32321591,0.00037517,120]
[426704668,1782752345000,-175.57195246,0.00037517,30]
[426704666,1782752345000,-163.65508627,0.00037517,30]
[426704662,1782752345000,-751.5958598,0.00037517,30]
[426704665,1782752345000,-152.57688637,0.00037517,30]
[426704664,1782752345000,-293.94232273,0.00037517,120]
[426704663,1782752345000,-649.62890218,0.00037517,30]
[426704661,1782752345000,-505.65460566,0.00037517,30]
[426704660,1782752345000,-1354.67814767,0.00037517,120]
[426704667,1782752345000,-2318.0878751,0.00037517,30]
[426704671,1782752345000,-6911.26719408,0.00037517,120]
[426704676,1782752345000,-356.08020521,0.00037517,120]
[426704674,1782752345000,-323.72293113,0.00037517,120]
[426704673,1782752345000,-500.0,0.00037517,120]
[426704687,1782752345000,-669.56,0.00037517,60]
[426704686,1782752345000,-669.56,0.00037517,60]
[426704683,1782752345000,-669.56,0.00037517,60]
[426704684,1782752345000,-669.56,0.00037517,60]
[426704682,1782752345000,-669.56,0.00037517,60]
[426704685,1782752345000,-669.56,0.00037517,60]
[426704679,1782752345000,-500.0,0.00037517,60]
[426704680,1782752345000,-556.98231845,0.00037517,60]
[426704677,1782752345000,-1075.70418466,0.00037517,120]
[426704678,1782752345000,-154.94305349,0.00037517,120]
[426704675,1782752345000,-471.82411887,0.00037517,30]
[426704681,1782752345000,-669.56,0.00037517,60]
[426704695,1782752346000,-669.56,0.00037517,60]
[426704703,1782752346000,-669.56,0.00037517,60]
[426704701,1782752346000,-669.56,0.00037517,60]
[426704700,1782752346000,-669.56,0.00037517,60]
[426704698,1782752346000,-669.56,0.00037517,60]
[426704699,1782752346000,-669.56,0.00037517,60]
[426704697,1782752346000,-669.56,0.00037517,60]
[426704689,1782752346000,-669.56,0.00037517,60]
[426704694,1782752346000,-669.56,0.00037517,60]
[426704693,1782752346000,-669.56,0.00037517,60]
[426704691,1782752346000,-669.56,0.00037517,60]
[426704692,1782752346000,-669.56,0.00037517,60]
[426704705,1782752346000,-250.03185164,0.00037517,120]
[426704690,1782752346000,-669.56,0.00037517,60]
[426704688,1782752346000,-669.56,0.00037517,60]
[426704696,1782752346000,-669.56,0.00037517,60]
[426704704,1782752346000,-669.60688575,0.00037517,60]
[426704702,1782752346000,-669.56,0.00037517,60]
[426704708,1782752346000,-500.0,0.00037517,60]
[426704707,1782752346000,-500.0,0.00037517,60]
[426704721,1782752346000,-500.0,0.00037517,120]
[426704723,1782752346000,-500.0,0.00037517,120]
[426704724,1782752346000,-500.0,0.00037517,120]
[426704722,1782752346000,-500.0,0.00037517,120]
[426704720,1782752346000,-4636.34984575,0.00037517,120]
[426704717,1782752346000,-278.24,0.00037517,120]
[426704718,1782752346000,-372.16307846,0.00037517,120]
[426704719,1782752346000,-629.06017975,0.00037517,120]
[426704715,1782752346000,-500.0,0.00037517,60]
[426704716,1782752346000,-397.97806665,0.00037517,60]
[426704710,1782752346000,-500.0,0.00037517,60]
[426704709,1782752346000,-500.0,0.00037517,60]
[426704712,1782752346000,-260.97713422,0.00037517,60]
[426704706,1782752346000,-500.0,0.00037517,60]
[426704714,1782752346000,-500.0,0.00037517,60]
[426704713,1782752346000,-178.1930632,0.00037517,60]
[426704711,1782752346000,-500.0,0.00037517,60]
[426704735,1782752347000,-500.0,0.00037517,120]
[426704740,1782752347000,-130000.0,0.00037517,120]
[426704741,1782752347000,-248.7805145,0.00037517,120]
[426704739,1782752347000,-235.571446,0.00037517,120]
[426704737,1782752347000,-359.28432367,0.00037517,30]
[426704738,1782752347000,-3304.71084057,0.00037517,60]
[426704736,1782752347000,-364.17062714,0.00037517,120]
[426704733,1782752347000,-500.0,0.00037517,120]
[426704726,1782752347000,-500.0,0.00037517,120]
[426704730,1782752347000,-500.0,0.00037517,120]
[426704731,1782752347000,-500.0,0.00037517,120]
[426704732,1782752347000,-500.0,0.00037517,120]
[426704729,1782752347000,-500.0,0.00037517,120]
[426704727,1782752347000,-500.0,0.00037517,120]
[426704728,1782752347000,-500.0,0.00037517,120]
[426704725,1782752347000,-500.0,0.00037517,120]
[426704734,1782752347000,-500.0,0.00037517,120]
[426704743,1782752347000,-500.0,0.00037517,120]
[426704742,1782752347000,-500.0,0.00037517,120]
[426704744,1782752347000,-500.0,0.00037517,120]
[426704745,1782752347000,-500.0,0.00037517,120]
[426704763,1782752347000,-500.0,0.00037517,120]
[426704762,1782752347000,-378.46590631,0.00037517,120]
[426704760,1782752347000,-500.0,0.00037517,120]
[426704761,1782752347000,-500.0,0.00037517,120]
[426704756,1782752347000,-500.0,0.00037517,120]
[426704758,1782752347000,-500.0,0.00037517,120]
[426704757,1782752347000,-500.0,0.00037517,120]
[426704755,1782752347000,-500.0,0.00037517,120]
[426704759,1782752347000,-500.0,0.00037517,120]
[426704752,1782752347000,-433.28073422,0.00037517,120]
[426704754,1782752347000,-500.0,0.00037517,120]
[426704746,1782752347000,-500.0,0.00037517,120]
[426704749,1782752347000,-500.0,0.00037517,120]
[426704748,1782752347000,-500.0,0.00037517,120]
[426704747,1782752347000,-500.0,0.00037517,120]
[426704751,1782752347000,-500.0,0.00037517,120]
[426704753,1782752347000,-500.0,0.00037517,120]
[426704750,1782752347000,-500.0,0.00037517,120]
[426704774,1782752348000,-500.0,0.00037517,120]
[426704779,1782752348000,-177.0,0.00037517,120]
[426704780,1782752348000,-4109.30546846,0.00037517,99]
[426704778,1782752348000,-277.73701121,0.00037517,30]
[426704777,1782752348000,-878.57388791,0.00037517,120]
[426704775,1782752348000,-500.0,0.00037517,120]
[426704776,1782752348000,-601.24076167,0.00037517,120]
[426704773,1782752348000,-500.0,0.00037517,120]
[426704765,1782752348000,-353.51231071,0.00037517,120]
[426704772,1782752348000,-500.0,0.00037517,120]
[426704770,1782752348000,-500.0,0.00037517,120]
[426704769,1782752348000,-500.0,0.00037517,120]
[426704768,1782752348000,-500.0,0.00037517,120]
[426704767,1782752348000,-500.0,0.00037517,120]
[426704764,1782752348000,-500.0,0.00037517,120]
[426704766,1782752348000,-161.50102369,0.00037517,30]
[426704781,1782752348000,-42167.27,0.00037517,120]
[426704771,1782752348000,-500.0,0.00037517,120]
[426704782,1782752348000,-465.42795387,0.00037517,120]
[426704783,1782752348000,-655.12,0.00037517,120]
[426704786,1782752348000,-655.12,0.00037517,120]
[426704802,1782752348000,-655.12,0.00037517,120]
[426704785,1782752348000,-655.12,0.00037517,120]
[426704801,1782752348000,-655.12,0.00037517,120]
[426704800,1782752348000,-655.12,0.00037517,120]
[426704796,1782752348000,-655.12,0.00037517,120]
[426704797,1782752348000,-655.12,0.00037517,120]
[426704795,1782752348000,-655.12,0.00037517,120]
[426704798,1782752348000,-655.12,0.00037517,120]
[426704799,1782752348000,-655.12,0.00037517,120]
[426704794,1782752348000,-655.12,0.00037517,120]
[426704792,1782752348000,-655.12,0.00037517,120]
[426704791,1782752348000,-655.12,0.00037517,120]
[426704790,1782752348000,-655.12,0.00037517,120]
[426704789,1782752348000,-655.12,0.00037517,120]
[426704788,1782752348000,-655.12,0.00037517,120]
[426704787,1782752348000,-655.12,0.00037517,120]
[426704784,1782752348000,-655.12,0.00037517,120]
[426704793,1782752348000,-655.12,0.00037517,120]
[426704814,1782752349000,-207.49834829,0.00037517,60]
[426704815,1782752349000,-207.49834829,0.00037517,60]
[426704813,1782752349000,-207.49834829,0.00037517,60]
[426704811,1782752349000,-207.49834829,0.00037517,60]
[426704812,1782752349000,-207.49834829,0.00037517,60]
[426704810,1782752349000,-207.49834829,0.00037517,60]
[426704804,1782752349000,-655.12,0.00037517,120]
[426704808,1782752349000,-207.49834829,0.00037517,60]
[426704807,1782752349000,-1930.34523423,0.00037517,30]
[426704805,1782752349000,-655.12,0.00037517,120]
[426704806,1782752349000,-655.3474974,0.00037517,120]
[426704803,1782752349000,-655.12,0.00037517,120]
[426704816,1782752349000,-189.6878922,0.00037517,120]
[426704809,1782752349000,-207.49834829,0.00037517,60]
[426704817,1782752349000,-189.6878922,0.00037517,120]
[426704823,1782752349000,-500.0,0.00037517,120]
[426704819,1782752349000,-472.09279496,0.00037517,120]
[426704818,1782752349000,-365.18511078,0.00037517,30]
[426704833,1782752349000,-780.63995555,0.00037517,60]
[426704832,1782752349000,-780.63995555,0.00037517,60]
[426704829,1782752349000,-151.58454254,0.00037517,120]
[426704830,1782752349000,-185.61919384,0.00037517,60]
[426704828,1782752349000,-500.0,0.00037517,120]
[426704826,1782752349000,-50670.0,0.00037517,30]
[426704831,1782752349000,-780.63995555,0.00037517,60]
[426704827,1782752349000,-26010.94428106,0.00037517,120]
[426704822,1782752349000,-624.1570088,0.00037517,120]
[426704834,1782752349000,-780.63995555,0.00037517,60]
[426704824,1782752349000,-500.0,0.00037517,120]
[426704821,1782752349000,-176.27,0.00037517,120]
[426704820,1782752349000,-549.00608135,0.00037517,120]
[426704825,1782752349000,-425.15299673,0.00037517,120]
[426704843,1782752350000,-780.63995555,0.00037517,60]
[426704849,1782752350000,-780.63995555,0.00037517,60]
[426704847,1782752350000,-780.63995555,0.00037517,60]
[426704848,1782752350000,-780.63995555,0.00037517,60]
[426704846,1782752350000,-780.63995555,0.00037517,60]
[426704844,1782752350000,-780.63995555,0.00037517,60]
[426704845,1782752350000,-780.63995555,0.00037517,60]
[426704836,1782752350000,-780.63995555,0.00037517,60]
[426704840,1782752350000,-780.63995555,0.00037517,60]
[426704839,1782752350000,-780.63995555,0.00037517,60]
[426704841,1782752350000,-780.63995555,0.00037517,60]
[426704835,1782752350000,-780.63995555,0.00037517,60]
[426704837,1782752350000,-780.63995555,0.00037517,60]
[426704838,1782752350000,-780.63995555,0.00037517,60]
[426704852,1782752350000,-780.63995555,0.00037517,60]
[426704842,1782752350000,-780.63995555,0.00037517,60]
[426704851,1782752350000,-780.63995555,0.00037517,60]
[426704850,1782752350000,-780.63995555,0.00037517,60]
[426704869,1782752350000,-1124.5,0.00037517,120]
[426704871,1782752350000,-169.40498603,0.00037517,60]
[426704853,1782752350000,-780.63995555,0.00037517,60]
[426704870,1782752350000,-169.40498603,0.00037517,60]
[426704867,1782752350000,-206.38854117,0.00037517,120]
[426704868,1782752350000,-1592.0,0.00037517,120]
[426704865,1782752350000,-206.38854117,0.00037517,120]
[426704862,1782752350000,-2513.70914023,0.00037517,120]
[426704863,1782752350000,-350.39028627,0.00037517,120]
[426704866,1782752350000,-206.38854117,0.00037517,120]
[426704861,1782752350000,-336.03488766,0.00037517,30]
[426704860,1782752350000,-780.63995555,0.00037517,60]
[426704858,1782752350000,-780.63995555,0.00037517,60]
[426704859,1782752350000,-780.63995555,0.00037517,60]
[426704857,1782752350000,-780.63995555,0.00037517,60]
[426704856,1782752350000,-780.63995555,0.00037517,60]
[426704854,1782752350000,-780.63995555,0.00037517,60]
[426704855,1782752350000,-780.63995555,0.00037517,60]
[426704864,1782752350000,-6110.14174957,0.00037517,120]
[426704882,1782752351000,-294.6745196,0.00037517,120]
[426704885,1782752351000,-150.32400364,0.00037517,60]
[426704886,1782752351000,-150.32400364,0.00037517,60]
[426704884,1782752351000,-150.32400364,0.00037517,60]
[426704883,1782752351000,-150.32400364,0.00037517,60]
[426704880,1782752351000,-169.40498603,0.00037517,60]
[426704881,1782752351000,-169.40498602,0.00037517,60]
[426704887,1782752351000,-150.32400364,0.00037517,60]
[426704877,1782752351000,-254.10747904,0.00037517,60]
[426704878,1782752351000,-194.3875145,0.00037517,120]
[426704876,1782752351000,-159.99359791,0.00037517,60]
[426704873,1782752351000,-225.8733147,0.00037517,60]
[426704875,1782752351000,-159.99359791,0.00037517,60]
[426704872,1782752351000,-225.8733147,0.00037517,60]
[426704874,1782752351000,-159.99359791,0.00037517,60]
[426704879,1782752351000,-169.40498603,0.00037517,60]
[426704889,1782752351000,-150.32400364,0.00037517,60]
[426704888,1782752351000,-150.32400364,0.00037517,60]
[426704890,1782752351000,-572.62127935,0.00037517,120]
[426704907,1782752351000,-404.0114984,0.00037517,120]
[426704906,1782752351000,-500.0,0.00037517,120]
[426704905,1782752351000,-500.0,0.00037517,120]
[426704904,1782752351000,-1012.70775687,0.00037517,30]
[426704902,1782752351000,-211.56115655,0.00037517,60]
[426704903,1782752351000,-211.56115655,0.00037517,60]
[426704899,1782752351000,-2939.999999,0.00037517,120]
[426704901,1782752351000,-211.56115655,0.00037517,60]
[426704893,1782752351000,-388.4483504,0.00037517,120]
[426704898,1782752351000,-367803.87203764,0.00037517,30]
[426704895,1782752351000,-204.806096,0.00037517,120]
[426704897,1782752351000,-172.63902004,0.00037517,30]
[426704894,1782752351000,-227.7564714,0.00037517,120]
[426704896,1782752351000,-497.0,0.00037517,60]
[426704891,1782752351000,-500.0,0.00037517,120]
[426704908,1782752351000,-561.81897723,0.00037517,120]
[426704892,1782752351000,-509.46564786,0.00037517,120]
[426704900,1782752351000,-4928.55543743,0.00037517,120]
[426704921,1782752352000,-648.96,0.00037517,60]
[426704923,1782752352000,-648.96,0.00037517,60]
[426704927,1782752352000,-500.0,0.00037517,60]
[426704924,1782752352000,-648.96,0.00037517,60]
[426704925,1782752352000,-648.96,0.00037517,60]
[426704919,1782752352000,-1296.61,0.00037517,60]
[426704922,1782752352000,-648.96,0.00037517,60]
[426704918,1782752352000,-1296.61,0.00037517,60]
[426704916,1782752352000,-1296.61,0.00037517,60]
[426704917,1782752352000,-1296.61,0.00037517,60]
[426704914,1782752352000,-170.39376497,0.00037517,120]
[426704915,1782752352000,-1296.61,0.00037517,60]
[426704913,1782752352000,-25000.0,0.00037517,100]
[426704911,1782752352000,-5197.06407105,0.00037517,30]
[426704912,1782752352000,-9720.30707589,0.00037517,120]
[426704910,1782752352000,-539.4012306,0.00037517,120]
[426704929,1782752352000,-500.0,0.00037517,60]
[426704920,1782752352000,-169.98748161,0.00037517,120]
[426704909,1782752352000,-500.0,0.00037517,120]
[426704926,1782752352000,-500.0,0.00037517,60]
[426704930,1782752352000,-500.0,0.00037517,60]
[426704928,1782752352000,-500.0,0.00037517,60]
[426704948,1782752352000,-500.0,0.00037517,120]
[426704946,1782752352000,-505.80673676,0.00037517,120]
[426704944,1782752352000,-500.0,0.00037517,120]
[426704945,1782752352000,-500.0,0.00037517,120]
[426704942,1782752352000,-500.0,0.00037517,120]
[426704943,1782752352000,-500.0,0.00037517,120]
[426704939,1782752352000,-706.4901,0.00037517,120]
[426704941,1782752352000,-500.0,0.00037517,120]
[426704947,1782752352000,-500.0,0.00037517,120]
[426704938,1782752352000,-706.8005,0.00037517,120]
[426704936,1782752352000,-500.0,0.00037517,120]
[426704935,1782752352000,-750.56,0.00037517,60]
[426704937,1782752352000,-589.6858815,0.00037517,120]
[426704934,1782752352000,-488.656322,0.00037517,120]
[426704933,1782752352000,-500.0,0.00037517,120]
[426704932,1782752352000,-6140.0,0.00037517,120]
[426704931,1782752352000,-200.19064482,0.00037517,120]
[426704940,1782752352000,-503.95,0.00037517,120]
[426704964,1782752353000,-186.13335089,0.00037517,120]
[426704962,1782752353000,-181.4136726,0.00037517,30]
[426704963,1782752353000,-1129.0,0.00037517,30]
[426704961,1782752353000,-1129.0,0.00037517,30]
[426704958,1782752353000,-500.0,0.00037517,60]
[426704959,1782752353000,-727410.82376406,0.00037517,30]
[426704957,1782752353000,-105130.88,0.00037517,120]
[426704952,1782752353000,-500.0,0.00037517,120]
[426704954,1782752353000,-500.0,0.00037517,120]
[426704955,1782752353000,-310.77200975,0.00037517,120]
[426704953,1782752353000,-500.0,0.00037517,120]
[426704951,1782752353000,-500.0,0.00037517,120]
[426704950,1782752353000,-500.0,0.00037517,120]
[426704949,1782752353000,-500.0,0.00037517,120]
[426704967,1782752353000,-4994.36,0.00037517,120]
[426704956,1782752353000,-515.13690168,0.00037517,60]
[426704965,1782752353000,-288.88001105,0.00037517,120]
[426704960,1782752353000,-32154.71930469,0.00037517,30]
[426704968,1782752353000,-4994.36,0.00037517,120]
[426704966,1782752353000,-4994.36,0.00037517,120]
[426704983,1782752353000,-4994.36,0.00037517,120]
[426704981,1782752353000,-4994.36,0.00037517,120]
[426704980,1782752353000,-4994.36,0.00037517,120]
[426704979,1782752353000,-4994.36,0.00037517,120]
[426704978,1782752353000,-4994.36,0.00037517,120]
[426704977,1782752353000,-4994.36,0.00037517,120]
[426704976,1782752353000,-4994.36,0.00037517,120]
[426704982,1782752353000,-4994.36,0.00037517,120]
[426704973,1782752353000,-4994.36,0.00037517,120]
[426704974,1782752353000,-4994.36,0.00037517,120]
[426704984,1782752353000,-4994.36,0.00037517,120]
[426704972,1782752353000,-4994.36,0.00037517,120]
[426704969,1782752353000,-4994.36,0.00037517,120]
[426704970,1782752353000,-4994.36,0.00037517,120]
[426704971,1782752353000,-4994.36,0.00037517,120]
[426704975,1782752353000,-4994.36,0.00037517,120]
[426704994,1782752354000,-782.211855,0.00037517,120]
[426704995,1782752354000,-50000.0,0.00037517,60]
[426704993,1782752354000,-427.74,0.00037517,120]
[426704991,1782752354000,-628.55958537,0.00037517,120]
[426704992,1782752354000,-207.374975,0.00037517,120]
[426704986,1782752354000,-4994.36,0.00037517,120]
[426704989,1782752354000,-4994.42561192,0.00037517,120]
[426704988,1782752354000,-4994.36,0.00037517,120]
[426704987,1782752354000,-4994.36,0.00037517,120]
[426704985,1782752354000,-4994.36,0.00037517,120]
[426704996,1782752354000,-2000.0,0.00037517,120]
[426704990,1782752354000,-3088.043212,0.00037517,60]
[426704997,1782752354000,-422.38,0.00037517,120]
[426704998,1782752354000,-824.86,0.00037517,120]
[426705009,1782752354000,-208.92,0.00037517,120]
[426704999,1782752354000,-209.34,0.00037517,120]
[426705001,1782752354000,-562.02,0.00037517,120]
[426705003,1782752354000,-2000.0,0.00037517,120]
[426705002,1782752354000,-767.26933981,0.00037517,120]
[426705004,1782752354000,-284.87,0.00037517,120]
[426705006,1782752354000,-208.93,0.00037517,120]
[426705005,1782752354000,-208.93,0.00037517,120]
[426705007,1782752354000,-208.92,0.00037517,120]
[426705008,1782752354000,-208.92,0.00037517,120]
[426705010,1782752354000,-1617.56,0.00037517,120]
[426705011,1782752354000,-1617.56,0.00037517,120]
[426705000,1782752354000,-679.31,0.00037517,120]
[426705021,1782752355000,-500.0,0.00037517,120]
[426705023,1782752355000,-500.0,0.00037517,120]
[426705024,1782752355000,-500.0,0.00037517,120]
[426705020,1782752355000,-500.0,0.00037517,120]
[426705022,1782752355000,-500.0,0.00037517,120]
[426705019,1782752355000,-500.0,0.00037517,120]
[426705012,1782752355000,-1617.56,0.00037517,120]
[426705018,1782752355000,-500.0,0.00037517,120]
[426705016,1782752355000,-809.57,0.00037517,120]
[426705014,1782752355000,-2772.95,0.00037517,120]
[426705015,1782752355000,-1592.0,0.00037517,120]
[426705013,1782752355000,-1617.56,0.00037517,120]
[426705017,1782752355000,-500.0,0.00037517,120]
[426705026,1782752355000,-609.52,0.00037517,120]
[426705040,1782752355000,-231.5388306,0.00037517,120]
[426705029,1782752355000,-500.0,0.00037517,120]
[426705025,1782752355000,-500.0,0.00037517,120]
[426705039,1782752355000,-500.0,0.00037517,120]
[426705036,1782752355000,-500.0,0.00037517,120]
[426705038,1782752355000,-500.0,0.00037517,120]
[426705034,1782752355000,-500.0,0.00037517,120]
[426705033,1782752355000,-500.0,0.00037517,120]
[426705037,1782752355000,-500.0,0.00037517,120]
[426705031,1782752355000,-500.0,0.00037517,120]
[426705032,1782752355000,-500.0,0.00037517,120]
[426705030,1782752355000,-500.0,0.00037517,120]
[426705028,1782752355000,-500.0,0.00037517,120]
[426705027,1782752355000,-500.0,0.00037517,120]
[426705035,1782752355000,-500.0,0.00037517,120]
[426705048,1782752356000,-500.0,0.00037517,120]
[426705054,1782752356000,-500.0,0.00037517,120]
[426705053,1782752356000,-500.0,0.00037517,120]
[426705051,1782752356000,-500.0,0.00037517,120]
[426705052,1782752356000,-500.0,0.00037517,120]
[426705050,1782752356000,-500.0,0.00037517,120]
[426705049,1782752356000,-500.0,0.00037517,120]
[426705045,1782752356000,-500.0,0.00037517,120]
[426705055,1782752356000,-500.0,0.00037517,120]
[426705046,1782752356000,-500.0,0.00037517,120]
[426705044,1782752356000,-639.24909571,0.00037517,120]
[426705043,1782752356000,-500.0,0.00037517,120]
[426705042,1782752356000,-500.0,0.00037517,120]
[426705041,1782752356000,-500.0,0.00037517,120]
[426705047,1782752356000,-500.0,0.00037517,120]
[426705057,1782752356000,-500.0,0.00037517,120]
[426705065,1782752356000,-500.0,0.00037517,120]
[426705058,1782752356000,-500.0,0.00037517,120]
[426705056,1782752356000,-500.0,0.00037517,120]
[426705073,1782752356000,-500.0,0.00037517,120]
[426705072,1782752356000,-500.0,0.00037517,120]
[426705070,1782752356000,-500.0,0.00037517,120]
[426705069,1782752356000,-500.0,0.00037517,120]
[426705068,1782752356000,-500.0,0.00037517,120]
[426705067,1782752356000,-500.0,0.00037517,120]
[426705071,1782752356000,-500.0,0.00037517,120]
[426705062,1782752356000,-525.90621702,0.00037517,120]
[426705064,1782752356000,-500.0,0.00037517,120]
[426705063,1782752356000,-500.0,0.00037517,120]
[426705061,1782752356000,-500.0,0.00037517,120]
[426705059,1782752356000,-500.0,0.00037517,120]
[426705060,1782752356000,-543.69515713,0.00037517,60]
[426705066,1782752356000,-500.0,0.00037517,120]
[426705084,1782752357000,-500.0,0.00037517,120]
[426705088,1782752357000,-500.0,0.00037517,120]
[426705089,1782752357000,-500.0,0.00037517,120]
[426705087,1782752357000,-500.0,0.00037517,120]
[426705086,1782752357000,-500.0,0.00037517,120]
[426705085,1782752357000,-500.0,0.00037517,120]
[426705083,1782752357000,-500.0,0.00037517,120]
[426705075,1782752357000,-500.0,0.00037517,120]